fUST/lending_fUST_20250709
["ID","MTS","AMOUNT","RATE_DAILY","PERIOD"]
[370486422,1752042646442,-460.0,0.00019178,2]
[370486423,1752042646453,-460.0,0.00019178,2]
[370486424,1752042646464,-460.0,0.00019178,2]
[370486425,1752042646474,-460.0,0.00019178,2]
[370486426,1752042646484,-823.34,0.00019178,2]
[370486427,1752042646494,-823.34,0.00019178,2]
[370486428,1752042646504,-460.0,0.00019178,2]
[370486429,1752042646514,-460.0,0.00019178,2]
[370486430,1752042646525,-460.0,0.00019178,2]
[370486431,1752042646535,-460.0,0.00019178,2]
[370486432,1752042646545,-460.0,0.00019178,2]
[370486433,1752042646556,-460.0,0.00019178,2]
[370486434,1752042646567,-460.0,0.00019178,2]
[370486435,1752042646577,-460.0,0.00019178,2]
[370486436,1752042646587,-460.0,0.00019178,2]
[370486437,1752042646596,-460.0,0.00019178,2]
[370486438,1752042646606,-460.0,0.00019178,2]
[370486439,1752042646621,-575.73,0.00019178,2]
[370486440,1752042646631,-460.0,0.00019178,2]
[370486441,1752042646641,-460.0,0.00019178,2]
[370486442,1752042646651,-460.0,0.00019178,2]
[370486443,1752042646661,-460.0,0.00019178,2]
[370486444,1752042646671,-460.0,0.00019178,2]
[370486445,1752042646681,-731.82,0.00019178,2]
[370486446,1752042646691,-206.148939,0.00019178,2]
[370486447,1752042646701,-823.34,0.00019451,2]
[370486448,1752042646711,-464.48924196,0.00019452,2]
[370486449,1752042646721,-465.28677605,0.00019452,2]
[370486450,1752042646731,-288.58186754,0.00019452,2]
[370486451,1752042646740,-476.16013035,0.00019452,2]
[370486452,1752042646749,-420.98401801,0.00019452,2]
[370486453,1752042646762,-39.01598199,0.00019452,2]
[370486454,1752042646772,-329.63608636,0.00019452,2]
[370486455,1752042646785,-130.36391364,0.00019452,2]
[370486456,1752042646795,-434.31642269,0.00019452,2]
[370486457,1752042646805,-460.0,0.00019452,2]
[370486458,1752042646815,-481.45437743,0.00019452,2]
[370486459,1752042646825,-460.0,0.00019452,2]
[370486460,1752042646835,-460.0,0.00019452,2]
[370486461,1752042646845,-460.0,0.00019452,2]
[370486462,1752042646854,-460.0,0.00019452,2]
[370486463,1752042646864,-460.0,0.00019452,2]
[370486464,1752042646874,-460.0,0.00019452,2]
[370486465,1752042646884,-460.0,0.00019452,2]
[370486466,1752042646894,-460.0,0.00019452,2]
[370486467,1752042646904,-460.0,0.00019452,2]
[370486468,1752042646913,-460.0,0.00019452,2]
[370486469,1752042646923,-460.0,0.00019452,2]
[370486470,1752042646933,-678.43,0.00019452,2]
[370486471,1752042646943,-460.0,0.00019452,2]
[370486472,1752042646954,-460.0,0.00019452,2]
[370486473,1752042646963,-460.0,0.00019452,2]
[370486474,1752042646974,-460.0,0.00019452,2]
[370486475,1752042646985,-460.0,0.00019452,2]
[370486476,1752042646995,-364.78050393,0.00019452,2]
[370486477,1752042647005,-460.0,0.00019452,2]
[370486478,1752042647015,-460.0,0.00019452,2]
[370486479,1752042647025,-460.0,0.00019452,2]
[370486480,1752042647035,-460.0,0.00019452,2]
[370486481,1752042647051,-460.0,0.00019452,2]
[370486482,1752042647062,-460.0,0.00019452,2]
[370486483,1752042647072,-460.0,0.00019452,2]
[370486484,1752042647087,-460.0,0.00019452,2]
[370486485,1752042647099,-460.0,0.00019452,2]
[370486486,1752042647110,-460.0,0.00019452,2]
[370486487,1752042647120,-460.0,0.00019452,2]
[370486488,1752042647130,-460.0,0.00019452,2]
[370486489,1752042647141,-460.0,0.00019452,2]
[370486490,1752042647152,-460.0,0.00019452,2]
[370486491,1752042647161,-460.0,0.00019452,2]
[370486492,1752042647171,-597.41357028,0.00019452,2]
[370486493,1752042647181,-460.0,0.00019452,2]
[370486494,1752042647191,-460.0,0.00019452,2]
[370486495,1752042647201,-460.0,0.00019452,2]
[370486496,1752042647213,-460.0,0.00019452,2]
[370486497,1752042647223,-575.73,0.00019452,2]
[370486498,1752042647233,-460.0,0.00019452,2]
[370486499,1752042647243,-460.0,0.00019452,2]
[370486500,1752042647256,-460.0,0.00019452,2]
[370486501,1752042647265,-460.0,0.00019452,2]
[370486502,1752042647275,-460.0,0.00019452,2]
[370486503,1752042647284,-731.82,0.00019452,2]
[370486504,1752042647294,-823.34,0.00019725,2]
[370486505,1752042647304,-460.0,0.00019726,2]
[370486506,1752042647315,-460.0,0.00019726,2]
[370486507,1752042647324,-460.0,0.00019726,2]
[370486508,1752042647334,-460.0,0.00019726,2]
[370486509,1752042647344,-460.0,0.00019726,2]
[370486510,1752042647353,-460.0,0.00019726,2]
[370486511,1752042647363,-293.9325529,0.00019726,2]
[370486512,1752042647373,-678.43,0.00019726,2]
[370486513,1752042647382,-460.0,0.00019726,2]
[370486514,1752042647392,-460.0,0.00019726,2]
[370486515,1752042647402,-460.0,0.00019726,2]
[370486516,1752042647412,-460.0,0.00019726,2]
[370486517,1752042647422,-460.0,0.00019726,2]
[370486518,1752042647432,-460.0,0.00019726,2]
[370486519,1752042647442,-460.0,0.00019726,2]
[370486520,1752042647451,-460.0,0.00019726,2]
[370486521,1752042647461,-460.0,0.00019726,2]
[370486522,1752042647471,-460.0,0.00019726,2]
[370486523,1752042647481,-543.67,0.00019726,2]
[370486524,1752042647491,-460.0,0.00019726,2]
[370486525,1752042647501,-460.0,0.00019726,2]
[370486526,1752042647511,-460.0,0.00019726,2]
[370486527,1752042647520,-241.40665662,0.00019726,2]
[370486528,1752042647529,-460.0,0.00019726,2]
[370486529,1752042647539,-575.73,0.00019726,2]
[370486530,1752042647548,-245.55807128,0.00019726,2]
[370486531,1752042647559,-460.0,0.00019726,2]
[370486532,1752042647568,-460.0,0.00019726,2]
[370486533,1752042647578,-731.82,0.00019726,2]
[370486534,1752042647589,-150.36452721,0.0001977,2]
[370486535,1752042647599,-500.61239595,0.00019782,2]
[370486536,1752042647825,-500.0,0.00019782,2]
[370486537,1752042647834,-500.0,0.00019782,2]
[370486538,1752042647843,-500.0,0.00019782,2]
[370486539,1752042647853,-500.0,0.00019782,2]
[370486540,1752042647862,-1010.59277507,0.000199,2]
[370486541,1752042647872,-420.0,0.00019976,2]
[370486542,1752042647881,-176.68407,0.00019995,2]
[370486543,1752042647891,-460.0,0.0002,2]
[370486544,1752042647901,-460.0,0.0002,2]
[370486545,1752042647910,-460.0,0.0002,2]
[370486546,1752042647919,-460.0,0.0002,2]
[370486547,1752042647928,-460.0,0.0002,2]
[370486548,1752042647937,-678.43,0.0002,2]
[370486549,1752042647947,-460.0,0.0002,2]
[370486550,1752042647958,-460.0,0.0002,2]
[370486551,1752042647969,-460.0,0.0002,2]
[370486552,1752042647980,-216.69305938,0.0002,2]
[370486553,1752042647989,-460.0,0.0002,2]
[370486554,1752042647999,-460.0,0.0002,2]
[370486555,1752042648008,-452.90133173,0.0002,2]
[370486556,1752042648018,-460.0,0.0002,2]
[370486557,1752042648027,-3627.385112,0.0002,5]
[370486558,1752042648037,-460.0,0.0002,2]
[370486559,1752042648047,-486.82,0.0002,2]
[370486560,1752042648056,-460.0,0.0002,2]
[370486561,1752042648066,-460.0,0.0002,2]
[370486562,1752042648075,-575.73,0.0002,2]
[370486563,1752042648085,-460.0,0.0002,2]
[370486564,1752042648095,-731.82,0.0002,2]
[370486565,1752042648105,-176.68407,0.00020091,2]
[370486566,1752042648115,-1010.59277486,0.00020107,2]
[370486567,1752042648124,-823.34,0.00020109,2]
[370486568,1752042648136,-500.0,0.0002011,2]
[370486569,1752042648146,-151.0,0.0002011,2]
[370486570,1752042648156,-151.0,0.0002011,2]
[370486571,1752042648167,-151.0,0.0002011,2]
[370486572,1752042648177,-151.0,0.0002011,2]
[370486573,1752042648187,-500.0,0.0002011,2]
[370486574,1752042648197,-151.0,0.0002011,2]
[370486575,1752042648206,-500.0,0.0002011,2]
[370486576,1752042648216,-202.03352032,0.0002011,2]
[370486577,1752042648227,-151.0,0.0002011,2]
[370486578,1752042648237,-500.0,0.0002011,2]
[370486579,1752042648246,-157.75257912,0.0002011,2]
[370486580,1752042648257,-151.0,0.0002011,2]
[370486581,1752042648266,-151.0,0.0002011,2]
[370486582,1752042648276,-151.0,0.0002011,2]
[370486583,1752042648285,-235.89384497,0.0002011,2]
[370486584,1752042648295,-198.71580233,0.0002011,2]
[370486585,1752042648305,-151.0,0.0002011,2]
[370486586,1752042648314,-500.0,0.00020137,2]
[370486587,1752042648324,-151.0,0.00020137,2]
[370486588,1752042648334,-151.0,0.00020137,2]
[370486589,1752042648343,-151.0,0.00020137,2]
[370486590,1752042648353,-151.0,0.00020137,2]
[370486591,1752042648362,-500.54104326,0.00020137,2]
[370486592,1752042648372,-151.0,0.00020137,2]
[370486593,1752042648382,-500.0,0.00020137,2]
[370486594,1752042648390,-151.61466733,0.00020137,2]
[370486595,1752042648400,-500.0,0.00020137,2]
[370486596,1752042648410,-151.0,0.00020137,2]
[370486597,1752042648419,-151.0,0.00020137,2]
[370486598,1752042648429,-250.09730706,0.00020137,2]
[370486599,1752042648438,-365.28207302,0.00020165,2]
[370486600,1752042648448,-151.0,0.00020165,2]
[370486601,1752042648457,-199.56185223,0.00020165,2]
[370486602,1752042648467,-151.0,0.00020165,2]
[370486603,1752042648477,-151.0,0.00020165,2]
[370486604,1752042648486,-151.0,0.00020165,2]
[370486605,1752042648496,-381.51572691,0.00020165,2]
[370486606,1752042648506,-209.78734587,0.00020165,2]
[370486607,1752042648515,-151.0,0.00020165,2]
[370486608,1752042648525,-198.0,0.00020165,2]
[370486609,1752042648534,-176.68407,0.00020187,2]
[370486610,1752042648544,-351.206091,0.00020187,2]
[370486611,1752042648553,-281.90042341,0.00020192,2]
[370486612,1752042648562,-151.0,0.00020192,2]
[370486613,1752042648572,-198.48264762,0.00020192,2]
[370486614,1752042648582,-247.62234683,0.00020192,2]
[370486615,1752042648591,-260.89677141,0.0002022,2]
[370486616,1752042648601,-588.48,0.00020247,3]
[370486617,1752042648611,-848.55005627,0.00020257,2]
[370486618,1752042648621,-160.0,0.00020257,2]
[370486619,1752042648632,-160.0,0.00020257,2]
[370486620,1752042648642,-214.14293035,0.00020257,2]
[370486621,1752042648651,-837.99933892,0.00020257,2]
[370486622,1752042648660,-12589.12013084,0.00020257,2]
[370486623,1752042648670,-230.53906051,0.00020257,2]
[370486624,1752042648679,-215.27775528,0.00020257,2]
[370486625,1752042648689,-160.0,0.00020257,2]
[370486626,1752042648698,-160.0,0.00020257,2]
[370486627,1752042648707,-823.34,0.00020268,2]
[370486628,1752042648717,-460.0,0.00020273,2]
[370486629,1752042648726,-184.347535,0.00020273,2]
[370486630,1752042648736,-460.0,0.00020273,2]
[370486631,1752042648746,-678.43,0.00020273,2]
[370486632,1752042648755,-454.85703852,0.00020273,2]
[370486633,1752042648765,-460.0,0.00020273,2]
[370486634,1752042648774,-460.0,0.00020273,2]
[370486635,1752042648784,-460.0,0.00020273,2]
[370486636,1752042648793,-460.0,0.00020273,2]
[370486637,1752042648803,-460.0,0.00020273,2]
[370486638,1752042648813,-460.0,0.00020273,2]
[370486639,1752042648822,-460.0,0.00020273,2]
[370486640,1752042648831,-390.59378054,0.00020273,2]
[370486641,1752042648841,-575.73,0.00020273,2]
[370486642,1752042648851,-176.68407,0.00020283,2]
[370486643,1752042648861,-151.83273189,0.00020299,2]
[370486644,1752042648871,-1010.59277486,0.00020314,3]
[370486645,1752042648881,-1000.0,0.0002033,2]
[370486646,1752042648890,-176.68407,0.00020378,2]
[370486647,1752042648899,-500.0,0.00020393,2]
[370486648,1752042648909,-500.0,0.00020397,2]
[370486649,1752042648919,-738.32732904,0.00020421,2]
[370486650,1752042648929,-176.68407,0.00020474,2]
[370486651,1752042648939,-823.34,0.00020499,2]
[370486652,1752042648948,-823.34,0.00020499,2]
[370486653,1752042648958,-35141.97634584,0.000205,2]
[370486654,1752042648968,-1010.59277486,0.00020521,3]
[370486655,1752042648978,-460.0,0.00020547,2]
[370486656,1752042648987,-460.0,0.00020547,2]
[370486657,1752042648996,-678.43,0.00020547,2]
[370486658,1752042649006,-460.0,0.00020547,2]
[370486659,1752042649015,-460.0,0.00020547,2]
[370486660,1752042649024,-460.0,0.00020547,2]
[370486661,1752042649034,-460.0,0.00020547,2]
[370486662,1752042649044,-460.0,0.00020547,2]
[370486663,1752042649054,-388.14799173,0.00020547,2]
[370486664,1752042649064,-460.0,0.00020547,2]
[370486665,1752042649073,-575.73,0.00020547,2]
[370486666,1752042649083,-176.68407,0.0002057,2]
[370486667,1752042649093,-176.68407,0.00020665,2]
[370486668,1752042649102,-1010.59277486,0.00020728,3]
[370486669,1752042649112,-930.04,0.00020731,2]
[370486670,1752042649121,-176.68407,0.00020761,2]
[370486671,1752042649132,-823.34,0.00020819,2]
[370486672,1752042649145,-460.0,0.00020821,2]
[370486673,1752042649155,-288.69365412,0.00020821,2]
[370486674,1752042649164,-678.43,0.00020821,2]
[370486675,1752042649174,-460.0,0.00020821,2]
[370486676,1752042649184,-460.0,0.00020821,2]
[370486677,1752042649194,-460.0,0.00020821,2]
[370486678,1752042649204,-460.0,0.00020821,2]
[370486679,1752042649215,-460.0,0.00020821,2]
[370486680,1752042649225,-460.0,0.00020821,2]
[370486681,1752042649235,-575.73,0.00020821,2]
[370486682,1752042649244,-176.68407,0.00020857,2]
[370486683,1752042649254,-1500.0,0.00020878,2]
[370486684,1752042649264,-2624.98,0.000209,2]
[370486685,1752042649275,-1010.59277486,0.00020934,4]
[370486686,1752042649285,-176.68407,0.00020952,2]
[370486687,1752042649295,-313.737447,0.00021,2]
[370486688,1752042649306,-176.68407,0.00021048,2]
[370486689,1752042649315,-823.34,0.00021094,2]
[370486690,1752042649325,-460.0,0.00021095,2]
[370486691,1752042649335,-678.43,0.00021095,2]
[370486692,1752042649344,-460.0,0.00021095,2]
[370486693,1752042649354,-460.0,0.00021095,2]
[370486694,1752042649363,-460.0,0.00021095,2]
[370486695,1752042649373,-460.0,0.00021095,2]
[370486696,1752042649383,-460.0,0.00021095,2]
[370486697,1752042649393,-460.0,0.00021095,2]
[370486698,1752042649403,-575.73,0.00021095,2]
[370486699,1752042649413,-1010.59277486,0.00021141,4]
[370486700,1752042649423,-176.68407,0.00021144,2]
[370486701,1752042649432,-176.68407,0.00021239,2]
[370486702,1752042649443,-176.68407,0.00021335,2]
[370486703,1752042649452,-1010.59277486,0.00021348,5]
[370486704,1752042649462,-460.0,0.00021369,2]
[370486705,1752042649471,-678.43,0.00021369,2]
[370486706,1752042649481,-460.0,0.00021369,2]
[370486707,1752042649491,-460.0,0.00021369,2]
[370486708,1752042649500,-460.0,0.00021369,2]
[370486709,1752042649510,-460.0,0.00021369,2]
[370486710,1752042649519,-460.0,0.00021369,2]
[370486711,1752042649529,-460.0,0.00021369,2]
[370486712,1752042649538,-575.73,0.00021369,2]
[370486713,1752042649548,-823.34,0.00021379,2]
[370486714,1752042649558,-823.34,0.00021379,2]
[370486715,1752042649568,-207.4,0.00021379,2]
[370486716,1752042649577,-690.642,0.00021379,2]
[370486717,1752042649586,-500.0,0.00021379,2]
[370486718,1752042649596,-300.0,0.00021379,2]
[370486719,1752042649606,-151.12446022,0.00021379,2]
[370486720,1752042649616,-500.0,0.00021379,2]
[370486721,1752042649626,-500.0,0.00021379,2]
[370486722,1752042649635,-500.0,0.00021379,2]
[370486723,1752042649645,-300.0,0.00021379,2]
[370486724,1752042649654,-300.0,0.00021379,2]
[370486725,1752042649664,-500.0,0.00021379,2]
[370486726,1752042649674,-300.0,0.00021379,2]
[370486727,1752042649683,-500.0,0.00021379,2]
[370486728,1752042649692,-300.0,0.00021379,2]
[370486729,1752042649702,-500.0,0.00021379,2]
[370486730,1752042649712,-300.0,0.00021379,2]
[370486731,1752042649721,-500.0,0.00021379,2]
[370486732,1752042649730,-300.0,0.00021379,2]
[370486733,1752042649739,-500.0,0.00021379,2]
[370486734,1752042649749,-500.0,0.00021379,2]
[370486735,1752042649759,-300.0,0.00021379,2]
[370486736,1752042649768,-300.0,0.00021379,2]
[370486737,1752042649777,-500.0,0.00021379,2]
[370486738,1752042649787,-300.0,0.00021379,2]
[370486739,1752042649796,-500.0,0.00021379,2]
[370486740,1752042649806,-300.0,0.00021379,2]
[370486741,1752042649815,-500.0,0.00021379,2]
[370486742,1752042649825,-500.0,0.00021379,2]
[370486743,1752042649835,-300.0,0.00021379,2]
[370486744,1752042649844,-500.0,0.00021379,2]
[370486745,1752042649854,-300.0,0.00021379,2]
[370486746,1752042649863,-500.0,0.00021379,2]
[370486747,1752042649873,-300.0,0.00021379,2]
[370486748,1752042649882,-500.0,0.00021379,2]
[370486749,1752042649892,-300.0,0.00021379,2]
[370486750,1752042649901,-500.0,0.00021379,2]
[370486751,1752042649911,-25000.0,0.00021379,2]
[370486752,1752042649921,-500.0,0.00021379,2]
[370486753,1752042649931,-614.70212289,0.00021379,2]
[370486754,1752042649940,-2386.17266523,0.00021379,2]
[370486755,1752042649949,-500.0,0.00021426,2]
[370486756,1752042649959,-176.68407,0.00021431,2]
[370486757,1752042649968,-716.195754,0.00021434,2]
[370486758,1752042649978,-738.32732902,0.00021453,2]
[370486759,1752042649987,-742.6949969,0.00021489,2]
[370486760,1752042649996,-619.91093299,0.000215,4]
[370486761,1752042650006,-151.83273189,0.0002152,2]
[370486762,1752042650015,-176.68407,0.00021526,2]
[370486763,1752042650024,-6667.08764781,0.00021543,2]
[370486764,1752042650034,-524.56552601,0.00021544,2]
[370486765,1752042650043,-1010.59277486,0.00021555,5]
[370486766,1752042650053,-176.68407,0.00021622,2]
[370486767,1752042650062,-823.34,0.00021642,2]
[370486768,1752042650072,-460.0,0.00021643,2]
[370486769,1752042650081,-678.43,0.00021643,2]
[370486770,1752042650091,-460.0,0.00021643,2]
[370486771,1752042650101,-460.0,0.00021643,2]
[370486772,1752042650111,-460.0,0.00021643,2]
[370486773,1752042650121,-460.0,0.00021643,2]
[370486774,1752042650131,-460.0,0.00021643,2]
[370486775,1752042650143,-460.0,0.00021643,2]
[370486776,1752042650153,-575.73,0.00021643,2]
[370486777,1752042650162,-176.68407,0.00021718,2]
[370486778,1752042650171,-501.51534397,0.00021762,2]
[370486779,1752042650181,-1010.59277486,0.00021762,5]
[370486780,1752042650190,-587.0,0.00021789,2]
[370486781,1752042650200,-176.68407,0.00021813,2]
[370486782,1752042650211,-600.0,0.0002185,2]
[370486783,1752042650220,-501.15223983,0.0002185,2]
[370486784,1752042650229,-500.0,0.0002185,2]
[370486785,1752042650239,-505.45951887,0.0002185,2]
[370486786,1752042650248,-500.0,0.0002185,2]
[370486787,1752042650257,-500.0,0.0002185,2]
[370486788,1752042650267,-500.0,0.0002185,2]
[370486789,1752042650277,-501.09006373,0.0002185,2]
[370486790,1752042650286,-12500.0,0.00021891,2]
[370486791,1752042650296,-823.34,0.00021899,2]
[370486792,1752042650305,-12500.0,0.00021899,2]
[370486793,1752042650316,-823.34,0.00021907,2]
[370486794,1752042650325,-12500.0,0.00021908,2]
[370486795,1752042650335,-12500.0,0.00021908,2]
[370486796,1752042650345,-6584.68494285,0.00021916,2]
[370486797,1752042650354,-823.34,0.00021916,2]
[370486798,1752042650363,-823.34,0.00021916,2]
[370486799,1752042650374,-12500.0,0.00021917,2]
[370486800,1752042650383,-12500.0,0.00021917,2]
[370486801,1752042650393,-460.0,0.00021917,2]
[370486802,1752042650402,-678.43,0.00021917,2]
[370486803,1752042650412,-460.0,0.00021917,2]
[370486804,1752042650421,-500.0,0.00021917,2]
[370486805,1752042650430,-500.0,0.00021917,2]
[370486806,1752042650439,-500.0,0.00021917,2]
[370486807,1752042650448,-500.0,0.00021917,2]
[370486808,1752042650457,-500.0,0.00021917,2]
[370486809,1752042650466,-500.0,0.00021917,2]
[370486810,1752042650476,-500.0,0.00021917,2]
[370486811,1752042650485,-500.0,0.00021917,2]
[370486812,1752042650494,-500.0,0.00021917,2]
[370486813,1752042650504,-500.0,0.00021917,2]
[370486814,1752042650514,-463.47153882,0.00021917,2]
[370486815,1752042650523,-460.0,0.00021917,2]
[370486816,1752042650534,-460.0,0.00021917,2]
[370486817,1752042650543,-460.0,0.00021917,2]
[370486818,1752042650553,-460.0,0.00021917,2]
[370486819,1752042650562,-460.0,0.00021917,2]
[370486820,1752042650571,-575.73,0.00021917,2]
[370486821,1752042650580,-200.0,0.00021918,2]
[370486822,1752042650590,-500.0,0.00021918,2]
[370486823,1752042650599,-823.34,0.00021927,2]
[370486824,1752042650608,-25000.0,0.00021927,2]
[370486825,1752042650617,-823.34,0.00021934,2]
[370486826,1752042650626,-1010.59277486,0.00021969,6]
[370486827,1752042650635,-167.0,0.00022,2]
[370486828,1752042650644,-646.0,0.00022067,2]
[370486829,1752042650654,-2153.0,0.00022067,2]
[370486830,1752042650663,-407.0,0.00022067,2]
[370486831,1752042650673,-408.797,0.00022067,2]
[370486832,1752042650683,-1010.59277486,0.00022176,6]
[370486833,1752042650692,-460.0,0.00022191,2]
[370486834,1752042650701,-678.43,0.00022191,2]
[370486835,1752042650710,-460.0,0.00022191,2]
[370486836,1752042650720,-460.0,0.00022191,2]
[370486837,1752042650730,-460.0,0.00022191,2]
[370486838,1752042650739,-322.54614404,0.00022191,2]
[370486839,1752042650749,-460.0,0.00022191,2]
[370486840,1752042650759,-460.0,0.00022191,2]
[370486841,1752042650768,-575.73,0.00022191,2]
[370486842,1752042650778,-150.2,0.0002234,2]
[370486843,1752042650787,-150.102,0.0002234,2]
[370486844,1752042650797,-150.0,0.0002234,2]
[370486845,1752042650807,-150.0,0.0002234,2]
[370486846,1752042650816,-176.521,0.0002234,2]
[370486847,1752042650825,-1010.59277486,0.00022383,7]
[370486848,1752042650837,-1200.0,0.00022398,2]
[370486849,1752042650846,-503.69021224,0.00022398,2]
[370486850,1752042650857,-1000.0,0.00022398,2]
[370486851,1752042650867,-502.53137756,0.00022398,2]
[370486852,1752042650877,-1000.0,0.00022398,2]
[370486853,1752042650888,-823.34,0.00022416,2]
[370486854,1752042650898,-823.34,0.00022416,2]
[370486855,1752042650907,-823.34,0.00022416,2]
[370486856,1752042650916,-823.34,0.00022416,2]
[370486857,1752042650925,-823.40909378,0.00022416,2]
[370486858,1752042650935,-460.0,0.00022465,2]
[370486859,1752042650945,-678.43,0.00022465,2]
[370486860,1752042650954,-460.0,0.00022465,2]
[370486861,1752042650964,-460.0,0.00022465,2]
[370486862,1752042650974,-460.0,0.00022465,2]
[370486863,1752042650983,-460.0,0.00022465,2]
[370486864,1752042650993,-460.0,0.00022465,2]
[370486865,1752042651002,-575.73,0.00022465,2]
[370486866,1752042651011,-25000.0,0.00022475,2]
[370486867,1752042651021,-738.32732902,0.00022486,2]
[370486868,1752042651030,-1010.59277486,0.0002259,7]
[370486869,1752042651039,-200.33534176,0.00022603,2]
[370486870,1752042651049,-2200.0,0.00022732,2]
[370486871,1752042651059,-460.0,0.00022739,2]
[370486872,1752042651068,-678.43,0.00022739,2]
[370486873,1752042651078,-460.0,0.00022739,2]
[370486874,1752042651087,-460.0,0.00022739,2]
[370486875,1752042651097,-460.0,0.00022739,2]
[370486876,1752042651106,-460.0,0.00022739,2]
[370486877,1752042651116,-273.24161996,0.00022739,2]
[370486878,1752042651125,-575.73,0.00022739,2]
[370486879,1752042651138,-151.83273189,0.0002274,2]
[370486880,1752042651148,-215.0738,0.00022748,2]
[370486881,1752042651157,-1010.59277486,0.00022797,7]
[370486882,1752042651167,-2624.98,0.000228,7]
[370486883,1752042651178,-1800.0,0.00022946,2]
[370486884,1752042651188,-1500.0,0.00022946,2]
[370486885,1752042651198,-1500.0,0.00022946,2]
[370486886,1752042651348,-160.0,0.00022955,5]
[370486887,1752042651359,-1010.59277486,0.00023003,8]
[370486888,1752042651369,-460.0,0.00023013,2]
[370486889,1752042651379,-678.43,0.00023013,2]
[370486890,1752042651389,-460.0,0.00023013,2]
[370486891,1752042651398,-460.0,0.00023013,2]
[370486892,1752042651408,-460.0,0.00023013,2]
[370486893,1752042651417,-549.3533115,0.00023013,2]
[370486894,1752042651427,-575.73,0.00023013,2]
[370486895,1752042651436,-167.0,0.00023014,7]
[370486896,1752042651446,-25000.0,0.00023023,2]
[370486897,1752042651455,-168.0,0.00023054,2]
[370486898,1752042651465,-168.0,0.00023165,2]
[370486899,1752042651474,-1010.59277486,0.0002321,8]
[370486900,1752042651484,-6667.08764781,0.00023222,2]
[370486901,1752042651493,-168.0,0.00023228,2]
[370486902,1752042651502,-460.0,0.00023287,2]
[370486903,1752042651512,-678.43,0.00023287,2]
[370486904,1752042651522,-460.0,0.00023287,2]
[370486905,1752042651531,-460.0,0.00023287,2]
[370486906,1752042651541,-460.0,0.00023287,2]
[370486907,1752042651551,-575.73,0.00023287,2]
[370486908,1752042651560,-151.0,0.000233,7]
[370486909,1752042651570,-301.622959,0.00023324,4]
[370486910,1752042651579,-4989.65,0.00023335,3]
[370486911,1752042651589,-215.27775528,0.000234,3]
[370486912,1752042651598,-160.0,0.000234,3]
[370486913,1752042651608,-214.14293035,0.000234,3]
[370486914,1752042651617,-837.99933892,0.000234,3]
[370486915,1752042651627,-230.53906051,0.000234,3]
[370486916,1752042651636,-160.0,0.000234,3]
[370486917,1752042651646,-12589.12013084,0.000234,3]
[370486918,1752042651656,-160.0,0.000234,3]
[370486919,1752042651666,-1010.59277486,0.00023417,9]
[370486920,1752042651675,-2400.0,0.00023494,2]
[370486921,1752042651685,-2000.0,0.00023494,2]